bitfinex-derivatives/quotes_SOLF0:USTF0_20220109
["timestamp","ask_amount","ask_price","bid_price","bid_amount"]
[1641766594515,3.3792718,142.37,142.35,3.99113173]
[1641766594916,3.3792718,142.37,142.35,6.48959552]
[1641766595316,27.66479,142.41,142.35,6.48959552]
[1641766595317,3.3792718,142.4,142.36,3.99113173]
[1641766596115,3.3792718,142.4,142.37,2.49846379]
[1641766596315,3.3792718,142.4,142.37,11.05446379]
[1641766596716,3.3792718,142.4,142.38,3.99113173]
[1641766604927,3.3792718,142.4,142.36,3.99113173]
[1641766605327,3.3792718,142.41,142.36,3.99113173]
[1641766605928,3.3792718,142.41,142.37,2.49210452]
[1641766606127,3.3792718,142.41,142.37,10.71610452]
[1641766606527,3.3792718,142.41,142.38,3.99113173]
[1641766607327,3.3792718,142.41,142.37,3.99113173]
[1641766608829,3.3792718,142.41,142.38,2.49147027]
[1641766609730,3.3792718,142.41,142.39,3.99113173]
[1641766611031,3.3792718,142.41,142.37,3.99113173]
[1641766611831,3.3792718,142.41,142.38,2.4906575]
[1641766612234,3.3792718,142.41,142.39,3.99113173]
[1641766613535,5.1332718,142.41,142.39,3.99113173]
[1641766614034,5.1332718,142.41,142.34,90.52655182]
[1641766614035,3.3792718,142.4,142.35,3.99113173]
[1641766614734,3.3792718,142.4,142.36,2.49031011]
[1641766615235,3.3792718,142.4,142.37,3.99113173]
[1641766616236,3.3792718,142.41,142.37,3.99113173]
[1641766616636,3.3792718,142.39,142.37,3.99113173]
[1641766617036,3.3792718,142.41,142.35,3.99113173]
[1641766617636,3.3792718,142.41,142.36,2.49098573]
[1641766618036,3.3792718,142.41,142.37,13.579]
[1641766618237,3.3792718,142.42,142.37,17.57013173]
[1641766618737,3.3792718,142.42,142.38,3.99113173]
[1641766619039,3.3792718,142.42,142.38,6.48211746]
[1641766619542,3.3792718,142.42,142.39,3.99113173]
[1641766620440,3.3792718,142.42,142.38,3.99113173]
[1641766623343,3.3792718,142.42,142.39,2.49996697]
[1641766623944,3.3792718,142.42,142.4,3.99113173]
[1641766624645,3.3792718,142.42,142.4,10.97513173]
[1641766625244,3.3792718,142.42,142.41,2.50003971]
[1641766625445,3.3792718,142.42,142.41,6.49117144]
[1641766627248,3.3792718,142.44,142.41,6.49117144]
[1641766627949,3.3792718,142.44,142.41,2.50003971]
[1641766628151,3.3792718,142.44,142.4,6.984]
[1641766628352,3.3792718,142.44,142.42,3.98732465]
[1641766629052,3.3792718,142.44,142.41,3.98732465]
[1641766630254,3.3792718,142.44,142.41,7.98732465]
[1641766630555,3.3792718,142.44,142.42,2.50002826]
[1641766630955,3.3792718,142.45,142.42,6.48735291]
[1641766631555,3.3792718,142.46,142.43,3.98732465]
[1641766631755,3.3792718,142.46,142.43,9.81432465]
[1641766632155,3.3792718,142.46,142.43,12.31435291]
[1641766632356,3.3792718,142.46,142.44,3.98732465]
[1641766633761,7.18e-05,142.46,142.45,4.0]
[1641766633958,7.18e-05,142.46,142.45,11.36976006]
[1641766634159,25.33986182,142.49,142.45,7.36976006]
[1641766634359,25.33986182,142.49,142.45,5.61576006]
[1641766634560,10.48,142.49,142.45,8.11220526]
[1641766634759,10.48,142.49,142.45,35.77699526]
[1641766635059,2.36376254,142.48,142.46,3.9856872]
[1641766635259,2.36376254,142.48,142.46,14.0676872]
[1641766635662,2.36376254,142.48,142.46,16.5641324]
[1641766635861,2.36376254,142.48,142.47,3.9856872]
[1641766640665,2.36376254,142.48,142.46,8.328]
[1641766640867,2.36376254,142.48,142.43,5.827]
[1641766641067,2.36376254,142.48,142.41,5.754]
[1641766641268,2.36376254,142.48,142.42,1.754]
[1641766641467,2.36376254,142.48,142.43,3.98656017]
[1641766641667,4.11776254,142.48,142.43,3.98656017]
[1641766642269,4.11776254,142.48,142.42,3.98656017]
[1641766642470,2.36376254,142.47,142.42,3.98656017]
[1641766642672,30.02855254,142.47,142.42,3.98656017]
[1641766642969,30.02855254,142.47,142.41,3.98656017]
[1641766643371,2.36376254,142.46,142.43,3.98656017]
[1641766643771,2.36376254,142.46,142.42,2.48927348]
[1641766644171,2.36376254,142.46,142.43,3.98656017]
[1641766645774,2.36376254,142.46,142.39,14.85986182]
[1641766645976,1.754,142.45,142.38,14.85986182]
[1641766646477,5.754,142.45,142.38,14.85986182]
[1641766646675,4.0,142.45,142.38,14.85986182]
[1641766646877,32.5808978,142.44,142.39,3.9870309]
[1641766647075,30.8268978,142.44,142.39,3.9870309]
[1641766647276,3.1621078,142.43,142.39,3.9870309]
[1641766648079,3.1621078,142.43,142.4,2.49005571]
[1641766648577,3.1621078,142.43,142.41,3.9870309]
[1641766649983,3.1621078,142.43,142.39,3.9870309]
[1641766650382,3.1621078,142.43,142.38,5.7410309]
[1641766650783,40.8824078,142.46,142.39,3.9870309]
[1641766650982,40.8824078,142.46,142.39,10.7320309]
[1641766651184,3.1621078,142.45,142.39,13.22369706]
[1641766651584,3.1621078,142.45,142.4,3.9870309]
[1641766651984,3.1621078,142.45,142.4,6.47869706]
[1641766652484,3.1621078,142.45,142.41,3.9870309]
[1641766652686,3.1621078,142.45,142.41,6.47869706]
[1641766653285,3.1621078,142.45,142.42,3.9870309]
[1641766653487,3.1621078,142.45,142.43,1.754]
[1641766653685,3.1621078,142.48,142.43,1.754]
[1641766654086,3.1621078,142.48,142.44,2.49166616]
[1641766654287,3.1621078,142.48,142.44,6.47869706]
[1641766655089,3.1621078,142.48,142.45,6.47869706]
[1641766655290,3.1621078,142.48,142.45,12.31869706]
[1641766655488,3.1621078,142.48,142.46,3.9870309]
[1641766662299,1.754,142.47,142.41,42.52465182]
[1641766662699,3.1621078,142.46,142.42,3.98660112]
[1641766663501,3.1621078,142.46,142.43,2.49549705]
[1641766663902,3.1621078,142.46,142.44,3.98660112]
[1641766664304,7.1621078,142.47,142.44,3.98660112]
[1641766664704,3.1621078,142.46,142.44,3.98660112]
[1641766666104,7.1621078,142.46,142.41,3.98660112]
[1641766666604,3.1621078,142.45,142.41,3.98660112]
[1641766666805,3.1621078,142.45,142.42,2.49616761]
[1641766667405,3.1621078,142.45,142.43,3.98660112]
[1641766668006,7.1621078,142.45,142.43,3.98660112]
[1641766668207,4.0,142.44,142.42,2.49616761]
[1641766668408,4.0,142.44,142.39,14.85986182]
[1641766668606,1.754,142.45,142.39,14.85986182]
[1641766668607,4.0,142.43,142.39,14.85986182]
[1641766669108,4.0,142.43,142.38,17.35696562]
[1641766669508,3.98747755,142.42,142.39,3.21883942]
[1641766670708,3.98747755,142.42,142.4,2.4971038]
[1641766670909,7.98747755,142.42,142.4,2.4971038]
[1641766671308,7.98747755,142.42,142.41,3.21883942]
[1641766672110,3.98747755,142.42,142.41,3.21883942]
[1641766673709,3.98747755,142.42,142.38,3.21883942]
[1641766674210,3.98747755,142.42,142.39,2.49632963]
[1641766674812,3.98747755,142.42,142.4,3.21883942]
[1641766676311,3.98747755,142.42,142.39,3.21883942]
[1641766677612,3.98747755,142.42,142.4,2.49509543]
[1641766678312,3.98747755,142.42,142.41,3.21883942]
[1641766679513,3.98747755,142.42,142.39,3.21883942]
[1641766681017,3.98747755,142.42,142.4,2.49502735]
[1641766681717,3.98747755,142.42,142.41,3.21883942]
[1641766682921,3.98747755,142.42,142.41,5.71386677]
[1641766685424,3.98747755,142.45,142.41,5.71386677]
[1641766685627,3.98747755,142.45,142.41,14.32386677]
[1641766686027,3.98747755,142.45,142.42,3.21883942]
[1641766686227,3.98747755,142.45,142.42,5.71386677]
[1641766686428,3.98747755,142.46,142.42,5.71386677]
[1641766686828,3.98747755,142.46,142.43,3.21883942]
[1641766688127,3.98747755,142.46,142.42,3.21883942]
[1641766688729,4.0,142.45,142.42,3.21883942]
[1641766688931,1.754,142.45,142.42,3.21883942]
[1641766689330,3.98747755,142.44,142.4,3.21883942]
[1641766690331,3.98747755,142.45,142.4,3.21883942]
[1641766690532,3.98747755,142.45,142.4,8.97283942]
[1641766690732,3.98747755,142.46,142.41,9.61722273]
[1641766690934,3.98747755,142.46,142.42,1.754]
[1641766691133,3.98747755,142.47,142.42,8.97283942]
[1641766691336,3.98747755,142.47,142.44,4.0]
[1641766691532,7.755e-05,142.49,142.44,12.233]
[1641766691734,7.755e-05,142.49,142.45,4.0]
[1641766691936,7.755e-05,142.49,142.46,1.754]
[1641766692335,27.66479,142.53,142.46,5.754]
[1641766692536,27.66479,142.53,142.46,1.754]
[1641766692734,27.66479,142.53,142.46,11.36931193]
[1641766692935,3.55664555,142.52,142.47,7.98465658]
[1641766693135,3.55664555,142.52,142.47,16.21865658]
[1641766693335,3.55664555,142.52,142.48,3.98465658]
[1641766693535,3.55664555,142.52,142.48,5.73865658]
[1641766694243,3.55664555,142.52,142.49,2.49706492]
[1641766694442,3.55664555,142.52,142.49,6.4817215]
[1641766694842,3.55664555,142.52,142.5,3.98465658]
[1641766695044,3.55664555,142.52,142.5,11.48665658]
[1641766695744,3.55664555,142.52,142.51,3.98465658]
[1641766698448,27.66479,142.53,142.51,3.98465658]
[1641766699951,3.20075086,142.52,142.51,3.98465658]
[1641766700749,3.20075086,142.52,142.49,3.98465658]
[1641766700951,3.20075086,142.52,142.49,7.98465658]
[1641766701150,3.20075086,142.52,142.49,3.98465658]
[1641766703354,27.66479,142.53,142.49,3.98465658]
[1641766704253,3.55628305,142.52,142.49,3.98465658]
[1641766704655,27.66479,142.53,142.49,3.98465658]
[1641766705154,27.66479,142.53,142.49,7.98465658]
[1641766705556,27.66479,142.53,142.5,3.98465658]
[1641766705958,27.66479,142.57,142.51,4.0]
[1641766706257,27.66479,142.57,142.51,1.752]
[1641766706457,2.48874921,142.56,142.52,3.98465658]
[1641766707258,4.0,142.54,142.52,3.98465658]
[1641766707860,2.48874921,142.53,142.51,3.98465658]
[1641766708759,4.0,142.53,142.51,3.98465658]
[1641766709159,2.48874921,142.52,142.49,3.98465658]
[1641766709359,4.0,142.5,142.45,14.85986182]
[1641766709559,4.0,142.46,142.45,14.85986182]
[1641766709759,38.79379,142.46,142.45,14.85986182]
[1641766710164,38.79379,142.46,142.43,2.48091129]
[1641766710861,38.79379,142.46,142.44,3.98586756]
[1641766711262,38.79379,142.46,142.41,3.98586756]
[1641766711862,4.0,142.45,142.41,3.98586756]
[1641766712162,4.0,142.44,142.4,3.98586756]
[1641766712563,4.0,142.43,142.42,3.98586756]
[1641766712865,1.754,142.45,142.42,3.98586756]
[1641766713163,38.79379,142.46,142.42,2.48325498]
[1641766713363,31.66479,142.46,142.43,3.98586756]
[1641766714263,2.49053739,142.45,142.39,3.98586756]
[1641766714765,2.49053739,142.45,142.39,28.77040899]
[1641766714966,6.49053739,142.45,142.39,28.77040899]
[1641766715165,6.49053739,142.45,142.4,3.98586756]
[1641766715369,5.754,142.44,142.4,3.98586756]
[1641766715567,11.224,142.44,142.4,6.47110916]
[1641766715768,27.66479,142.41,142.4,6.47110916]
[1641766715968,40.92179,142.41,142.38,14.85986182]
[1641766716668,40.92179,142.41,142.37,13.579]
[1641766717068,36.92179,142.41,142.37,13.579]
[1641766717268,36.92179,142.41,142.38,3.49051262]
[1641766718069,9.257,142.41,142.38,3.49051262]
[1641766718270,5.754,142.43,142.38,3.49051262]
[1641766718469,4.0,142.43,142.38,3.49051262]
[1641766718671,4.0,142.44,142.38,3.49051262]
[1641766718872,3.98697305,142.42,142.38,3.49051262]
[1641766719271,4.0,142.42,142.38,3.49051262]
[1641766719472,7.98697305,142.43,142.38,3.49051262]
[1641766719772,3.98697305,142.41,142.38,3.49051262]
[1641766719973,31.65176305,142.41,142.38,3.49051262]
[1641766720174,27.66479,142.41,142.38,3.49051262]
[1641766720776,4.0,142.43,142.38,3.49051262]
[1641766720979,4.0,142.42,142.38,3.49051262]
[1641766721178,7.98695332,142.42,142.38,3.49051262]
[1641766721376,3.98695332,142.42,142.38,3.49051262]
[1641766721577,3.98695332,142.41,142.38,3.49051262]
[1641766721978,27.66479,142.42,142.38,3.49051262]
[1641766722178,27.66479,142.42,142.38,11.15551262]
[1641766722379,3.98695332,142.41,142.38,11.15551262]
[1641766722780,27.66479,142.42,142.39,3.49051262]
[1641766723183,27.66479,142.42,142.4,3.49051262]
[1641766723582,27.66479,142.42,142.41,3.49051262]
[1641766723981,31.65148263,142.42,142.41,11.23751262]
[1641766731192,35.65148263,142.42,142.41,11.23751262]
[1641766731793,31.65148263,142.42,142.41,11.23751262]
[1641766732193,35.65148263,142.42,142.41,11.23751262]
[1641766733293,35.65148263,142.42,142.41,1.262e-05]
[1641766733494,35.65148263,142.42,142.37,13.579]
[1641766733895,31.66479,142.42,142.37,13.579]
[1641766734794,3.98733771,142.41,142.38,2.06549885]
[1641766737400,31.65212771,142.41,142.38,2.06549885]
[1641766737801,3.98733771,142.4,142.38,2.06549885]
[1641766738604,7.98733771,142.41,142.38,2.06549885]
[1641766738804,3.98733771,142.41,142.38,2.06549885]
[1641766739004,3.98733771,142.4,142.38,2.06549885]
[1641766739404,27.66479,142.39,142.38,2.06549885]
[1641766739806,31.65212771,142.39,142.38,2.06549885]
[1641766740405,27.66479,142.39,142.38,2.06549885]
[1641766741207,31.65240819,142.39,142.38,2.06549885]
[1641766741408,31.65240819,142.39,142.37,28.43886182]
[1641766741609,35.65240819,142.39,142.37,28.43886182]
[1641766741810,27.66479,142.39,142.37,28.43886182]
[1641766742009,29.41879,142.39,142.37,28.43886182]
[1641766742209,4.0,142.38,142.35,14.91217072]
[1641766742414,4.0,142.36,142.35,14.91217072]
[1641766742609,1.756,142.37,142.35,14.91217072]
[1641766742808,1.756,142.37,142.35,1.63299686]
[1641766742809,7.98856764,142.36,142.35,1.63299686]
[1641766743410,41.27292456,142.36,142.3,39.48572723]
[1641766743610,4.0,142.32,142.3,39.48572723]
[1641766743912,4.0,142.31,142.3,39.48572723]
[1641766744111,4.0,142.31,142.26,39.48572723]
[1641766744314,4.0,142.29,142.26,39.48572723]
[1641766744511,12.479,142.29,142.27,1.29120382]
[1641766744913,4.0,142.28,142.27,1.29120382]
[1641766745512,31.66479,142.28,142.27,1.29120382]
[1641766745712,19.69665163,142.28,142.27,1.29120382]
[1641766746315,19.69665163,142.28,142.26,1.29120382]
[1641766746516,19.69665163,142.28,142.27,4.0]
[1641766746715,27.66479,142.29,142.27,4.0]
[1641766746917,27.66479,142.29,142.26,1.29120382]
[1641766747115,27.66479,142.29,142.28,1.29120382]
[1641766747715,27.66479,142.29,142.25,1.29120382]
[1641766748518,27.66479,142.29,142.24,1.29120382]
[1641766748717,27.66479,142.29,142.28,4.0]
[1641766749118,27.66479,142.29,142.26,4.0]
[1641766749320,27.66479,142.29,142.28,1.29120382]
[1641766749722,27.66479,142.29,142.25,4.0]
[1641766750120,27.66479,142.29,142.26,1.29120382]
[1641766759832,27.66479,142.28,142.26,1.29120382]
[1641766761536,7.37824388,142.3,142.26,1.29120382]
[1641766762038,3.99020042,142.29,142.26,1.29120382]
[1641766762238,27.66479,142.27,142.26,1.29120382]
[1641766763139,7.37824388,142.3,142.26,5.29120382]
[1641766763439,8.78390077,142.32,142.26,7.40320382]
[1641766763640,34.2097,142.33,142.27,4.0]
[1641766763941,3.98947835,142.31,142.28,4.0]
[1641766764142,3.98947835,142.31,142.27,1.29120382]
[1641766764342,3.98947835,142.32,142.3,4.0]
[1641766764543,3.98947835,142.32,142.3,9.957]
[1641766764742,3.98947835,142.32,142.31,1.29120382]
[1641766768246,3.98947835,142.32,142.3,12.95520382]
[1641766768744,3.98947835,142.32,142.31,1.29120382]
[1641766777569,3.98947835,142.32,142.31,3.78752867]
[1641766780869,31.65426835,142.32,142.31,3.78752867]
[1641766781070,27.66479,142.32,142.31,3.78752867]
[1641766781473,31.65426835,142.32,142.31,3.78752867]
[1641766783571,3.98947835,142.32,142.31,3.78752867]
[1641766784071,3.98947835,142.34,142.31,3.78752867]
[1641766784471,3.98947835,142.32,142.31,3.78752867]
[1641766784871,3.98947835,142.34,142.31,3.78752867]
[1641766785072,27.66479,142.32,142.31,3.78752867]
[1641766785374,27.66479,142.32,142.31,2.49632485]
[1641766785873,31.65426835,142.32,142.31,2.49632485]
[1641766786673,31.65426835,142.32,142.29,14.9187719]
[1641766787374,3.98947835,142.31,142.29,14.9187719]
[1641766787576,3.98947835,142.31,142.28,27.33970503]
[1641766788977,27.66479,142.29,142.27,17.41509675]
[1641766793483,27.66479,142.29,142.28,14.9187719]
[1641766794283,27.66479,142.29,142.28,17.41509675]
[1641766794484,31.65494288,142.29,142.28,17.41509675]
[1641766794985,27.66479,142.29,142.28,21.41509675]
[1641766795386,27.66479,142.29,142.28,17.41509675]
[1641766796586,27.66479,142.29,142.28,14.9187719]
[1641766797288,27.66479,142.29,142.28,21.41509675]
[1641766798690,27.66479,142.29,142.28,17.41509675]
[1641766799394,27.66479,142.29,142.28,14.9187719]
[1641766799993,27.66479,142.29,142.28,17.41509675]
[1641766800395,27.66479,142.29,142.28,18.70651634]
[1641766800595,27.66479,142.29,142.28,16.21019149]
[1641766801494,27.66479,142.29,142.28,22.70651634]
[1641766801996,27.66479,142.29,142.28,7.78774444]
[1641766802900,27.66479,142.29,142.28,22.71572479]
[1641766803501,27.66479,142.29,142.28,7.78774444]
[1641766806404,27.66479,142.29,142.28,22.71862604]
[1641766807306,27.66479,142.29,142.28,18.71862604]
[1641766808207,27.66479,142.29,142.28,22.71862604]
[1641766810912,27.66479,142.32,142.28,7.78774444]
[1641766811112,27.66479,142.32,142.28,10.77174444]
[1641766811414,3.98963413,142.31,142.29,1.29141959]
[1641766811612,27.66479,142.32,142.29,1.29141959]
[1641766812112,27.66479,142.32,142.3,17.43279726]
[1641766812612,27.66479,142.32,142.31,1.29141959]
[1641766813113,31.65424506,142.32,142.31,1.29141959]
[1641766813314,31.65424506,142.32,142.31,5.29141959]
[1641766813815,31.65424506,142.32,142.31,22.72421685]
[1641766814414,31.65424506,142.32,142.31,7.78774444]
[1641766819824,3.98945506,142.32,142.31,7.78774444]
[1641766820527,31.65424506,142.34,142.31,7.78774444]
[1641766820825,31.65424506,142.34,142.32,1.29141959]
[1641766821027,3.98945506,142.33,142.32,1.29141959]
[1641766821232,3.98945506,142.33,142.32,3.78774444]
[1641766823733,3.98945506,142.33,142.32,7.78774444]
[1641766825234,27.66479,142.36,142.32,22.72421685]
[1641766825235,3.98945506,142.35,142.32,22.72421685]
[1641766825635,3.98945506,142.35,142.32,21.43279726]
[1641766825834,3.98945506,142.35,142.32,4.0]
[1641766826935,3.98945506,142.35,142.29,56.26449206]
[1641766827336,3.98945506,142.35,142.3,1.29123808]
[1641766827937,3.98945506,142.35,142.31,2.49911113]
[1641766828340,3.98945506,142.35,142.32,1.29123808]
[1641766829438,3.98945506,142.35,142.33,2.49911113]
[1641766830740,3.98945506,142.35,142.3,2.49911113]
[1641766831344,3.98945506,142.35,142.32,4.0]
[1641766831540,3.98945506,142.35,142.3,2.49911113]
[1641766831739,3.98945506,142.35,142.31,1.29117415]
[1641766831940,3.98945506,142.35,142.33,2.49911113]
[1641766832540,3.98945506,142.35,142.32,6.49911113]
[1641766833142,3.98945506,142.35,142.33,2.49911113]
[1641766834843,27.66479,142.34,142.33,2.49911113]
[1641766835343,31.65424506,142.34,142.33,2.49911113]
[1641766835543,3.98945506,142.34,142.33,2.49911113]
[1641766836144,3.98945506,142.36,142.33,2.49911113]
[1641766837145,27.66479,142.35,142.33,2.49911113]
[1641766837445,3.98945506,142.34,142.33,2.49911113]
[1641766839048,3.98945506,142.36,142.33,2.49911113]
[1641766839247,27.66479,142.35,142.33,2.49911113]
[1641766839948,3.98945506,142.34,142.33,2.49911113]
[1641766841850,3.98945506,142.34,142.33,3.79011379]
[1641766843248,3.98945506,142.34,142.33,2.49911113]
[1641766843750,3.98945506,142.34,142.33,3.79012123]
[1641766844150,3.98945506,142.34,142.33,1.2910101]
[1641766844553,3.98945506,142.34,142.32,1.2910101]
[1641766845052,3.98945506,142.34,142.33,2.49911113]
[1641766848558,3.98945506,142.34,142.33,6.49911113]
[1641766848757,3.98945506,142.34,142.33,7.78982285]
[1641766854764,3.98945506,142.34,142.33,3.78982285]
[1641766854963,3.98945506,142.34,142.33,2.49911113]
[1641766855764,3.98945506,142.34,142.33,6.49911113]
[1641766856368,6.47368181,142.34,142.33,4.0]
[1641766857067,6.47368181,142.34,142.33,6.49911113]
[1641766857267,6.47368181,142.34,142.33,7.78980728]
[1641766857768,3.98945506,142.34,142.33,7.78980728]
[1641766858569,3.98945506,142.35,142.33,7.78980728]
[1641766858971,3.98945506,142.35,142.34,1.29069615]
[1641766859169,3.98945506,142.35,142.34,3.78980728]
[1641766862675,3.98945506,142.35,142.34,7.78980728]
[1641766863878,3.98945506,142.35,142.34,6.49911113]
[1641766865778,3.98945506,142.35,142.34,4.0]
[1641766867081,3.98945506,142.35,142.34,6.499101]
[1641766868082,3.98945506,142.37,142.34,6.499101]
[1641766868481,31.65424506,142.37,142.34,6.499101]
[1641766868884,6.47198406,142.36,142.3,35.13665149]
[1641766869182,6.47198406,142.36,142.35,4.0]
[1641766869383,2.482529,142.36,142.35,4.0]
[1641766869585,27.66479,142.37,142.35,4.0]
[1641766869586,14.9187719,142.38,142.35,11.259]
[1641766869783,14.9187719,142.38,142.35,8.54941934]
[1641766869982,14.9187719,142.38,142.37,4.0]
[1641766870384,2.48193834,142.4,142.37,4.0]
[1641766870583,2.48193834,142.4,142.39,4.0]
[1641766870784,2.48193834,142.4,142.39,10.005]
[1641766871186,3.834e-05,142.4,142.39,10.005]
[1641766871685,14.9187719,142.42,142.39,11.29387538]
[1641766871886,27.66479,142.43,142.39,7.29387538]
[1641766872086,27.66479,142.43,142.42,4.0]
[1641766872285,27.66479,142.43,142.42,11.331]
[1641766872585,14.9187719,142.44,142.42,11.331]
[1641766872786,27.66479,142.45,142.43,4.0]
[1641766872985,27.66479,142.45,142.44,4.0]
[1641766874487,27.66479,142.48,142.44,4.0]
[1641766874886,27.66479,142.48,142.45,4.0]
[1641766875088,27.66479,142.48,142.42,7.331]
[1641766875486,27.66479,142.48,142.46,4.0]
[1641766875887,27.66479,142.48,142.42,7.331]
[1641766876088,27.66479,142.48,142.42,11.331]
[1641766876990,27.66479,142.48,142.42,7.331]
[1641766877192,1.754,142.47,142.44,4.0]
[1641766877389,1.754,142.47,142.42,7.331]
[1641766877590,1.754,142.47,142.41,33.9068]
[1641766877992,1.754,142.47,142.42,1.2881663]
[1641766878291,27.66479,142.48,142.45,4.0]
[1641766881393,27.66479,142.48,142.41,33.9068]
[1641766881693,34.68504343,142.48,142.42,5.28820945]
[1641766881993,34.68504343,142.48,142.42,1.28820945]
[1641766882193,12.29044837,142.47,142.41,33.9068]
[1641766882393,14.04444837,142.47,142.43,4.0]
[1641766882998,1.754,142.47,142.43,4.0]
[1641766883294,1.754,142.47,142.39,33.9671]
[1641766883493,1.754,142.47,142.42,4.0]
[1641766884694,16.27875909,142.46,142.39,33.9671]
[1641766884894,1.754,142.45,142.36,33.41879]
[1641766885098,1.754,142.45,142.4,1.28864267]
[1641766885394,1.754,142.45,142.4,5.28864267]
[1641766885596,3.9875295,142.44,142.4,4.0]
[1641766885796,3.9875295,142.44,142.37,1.28864267]
[1641766885997,3.9875295,142.44,142.36,37.9034]
[1641766886196,3.9875295,142.44,142.41,4.0]
[1641766886396,23.29997818,142.46,142.41,4.0]
[1641766886596,1.754,142.45,142.41,4.0]
[1641766886796,1.754,142.45,142.4,4.0]
[1641766886997,5.7415295,142.45,142.37,4.0]
[1641766887197,7.02222534,142.44,142.36,33.9034]
[1641766887402,1.754,142.43,142.36,37.9034]
[1641766887700,5.7415295,142.43,142.37,1.2891804]
[1641766888197,3.9875295,142.42,142.38,4.0]
[1641766888598,3.9875295,142.42,142.37,1.2891804]
[1641766889101,3.9875295,142.42,142.38,4.0]
[1641766889299,3.9875295,142.42,142.37,1.2891804]
[1641766889899,3.9875295,142.42,142.38,4.0]
[1641766890801,3.9875295,142.42,142.33,27.66479]
[1641766890999,7.02444507,142.39,142.34,4.0]
[1641766891203,1.756,142.38,142.34,4.0]
[1641766891400,29.42079,142.38,142.32,14.93647241]
[1641766891599,3.9875295,142.37,142.32,14.93647241]
[1641766891799,3.9875295,142.37,142.33,4.0]
[1641766892000,3.9875295,142.37,142.33,5.29064583]
[1641766892401,3.9875295,142.37,142.33,4.0]
[1641766893300,7.02592567,142.36,142.33,4.0]
[1641766893501,13.43792567,142.36,142.33,4.0]
[1641766893700,3.9875295,142.35,142.33,4.0]
[1641766894601,3.9875295,142.35,142.3,4.0]
[1641766895102,3.9875295,142.35,142.31,1.29083607]
[1641766897104,3.9875295,142.35,142.34,4.0]
[1641766897505,3.9875295,142.35,142.31,1.29083607]
[1641766897805,3.9875295,142.35,142.27,7.3790927]
[1641766898005,3.9875295,142.35,142.33,4.0]
[1641766900207,3.9875295,142.35,142.3,4.0]
[1641766900406,1.756,142.34,142.29,4.0]
[1641766900606,3.9875295,142.35,142.33,4.0]
[1641766900810,3.9875295,142.35,142.31,1.29092932]
[1641766901008,3.9875295,142.35,142.34,4.0]
[1641766901208,3.98976513,142.36,142.34,4.0]
[1641766903510,3.98976513,142.36,142.31,1.29092932]
[1641766904110,3.98976513,142.36,142.34,4.0]
[1641766904510,3.98976513,142.36,142.31,1.29092932]
[1641766904910,3.98976513,142.36,142.33,4.0]
[1641766904911,1.756,142.35,142.33,4.0]
[1641766905111,5.74576513,142.36,142.33,4.0]
[1641766905311,5.74576513,142.36,142.31,1.29092932]
[1641766905712,27.66479,142.35,142.33,4.0]
[1641766906215,27.66479,142.35,142.31,1.29092932]
[1641766906413,27.66479,142.35,142.33,4.0]
[1641766908420,27.66479,142.35,142.34,4.0]
[1641766908618,27.66479,142.35,142.34,9.708]
[1641766908816,27.66479,142.35,142.34,5.708]
[1641766909117,27.66479,142.35,142.34,9.708]
[1641766911230,27.66479,142.35,142.34,5.708]
[1641766911421,27.66479,142.35,142.3,35.3937]
[1641766911623,27.66479,142.35,142.28,4.0]
[1641766912021,27.66479,142.35,142.34,4.0]
[1641766916129,1.756,142.37,142.34,4.0]
[1641766916331,3.98951579,142.35,142.34,4.0]
[1641766916730,3.98951579,142.36,142.34,4.0]
[1641766918433,3.98951579,142.36,142.28,28.87562123]
[1641766918936,3.98951579,142.36,142.34,4.0]
[1641766922939,2.48207002,142.35,142.34,4.0]
[1641766923441,6.47158581,142.35,142.34,4.0]
[1641766923941,6.47158581,142.35,142.34,5.29022706]
[1641766924343,3.98951579,142.35,142.34,4.0]
[1641766924742,3.98951579,142.36,142.34,4.0]
[1641766924942,3.98951579,142.36,142.34,14.04492674]
[1641766925142,3.98951579,142.36,142.35,4.0]
[1641766925642,3.98951579,142.36,142.35,5.28987709]
[1641766925843,3.98951579,142.36,142.35,7.78880383]
[1641766926443,3.98951579,142.38,142.35,7.78880383]
[1641766926947,3.98951579,142.38,142.36,1.28987709]
[1641766928047,3.98951579,142.38,142.35,1.28987709]
[1641766928248,3.98951579,142.38,142.37,4.0]
[1641766928447,3.98951579,142.38,142.37,12.354]